[Event "44th Chess Olympiad Open 2022"]
[Site "Chennai"]
[Date "2022.08.07"]
[Round "9.28"]
[White "Panjwani, Raja"]
[Black "Miezis Normunds"]
[Result "1-0"]
[WhiteElo "2450"]
[BlackElo "2446"]
[Annotator "TA"]
[PlyCount "31"]
[EventDate "2022.??.??"]
[TimeControl "60"]

{[%evp 12,31,20,26,22,33,27,29,43,41,40,29,34,28,29,29,208,200,200,206,599,593]
} 1. d4 {[%emt 0:00:04]} Nf6 {[%emt 0:00:21]} 2. c4 {[%emt 0:00:10]} e6 {
[%emt 0:00:40]} 3. g3 {[%emt 0:00:08]} Bb4+ {[%emt 0:03:58]} 4. Bd2 {[%emt 0:
00:00]} a5 {[%emt 0:02:12]} 5. Bg2 {[%emt 0:00:26]} d5 {[%emt 0:01:26]} 6. Nf3
{[%emt 0:00:22]} O-O {[%emt 0:04:55]} 7. Qc2 $1 {[%emt 0:00:30] now scores
much better than the old 7.0-0.} b6 {[%emt 0:13:30] E11: Bogo-Indian.} 8. O-O {
[%emt 0:00:09]} Bb7 {[%emt 0:01:11] has lost popularity (8...Ba6).} 9. cxd5 {
[%emt 0:05:56]} exd5 {[%emt 0:01:30] White has an edge.} 10. Bf4 {[%emt 0:31:
34]} Bd6 {[%emt 0:04:06]} 11. Bxd6 {[%emt 0:00:37]} Qxd6 {[%emt 0:00:00]} 12.
Nc3 {[%emt 0:00:19]} Qe7 {[%emt 0:06:31] [#]} 13. Ne5 $146 {[%emt 0:08:43]} ({
Predecessor:} 13. Rac1 Nbd7 14. Rfd1 c6 15. Re1 Rfe8 16. e3 Ne4 17. Ne2 g5 18.
Nc3 f5 19. Nd2 {1-0 (36) Schlamp,F (2190)-Engelmann,N Bonn 1998}) 13... Nc6 $2
{[%emt 0:16:12] [#]} (13... Nbd7 $11 {and Black stays safe.}) 14. Nxd5 $18 {
[%emt 0:00:00]} Nxd5 {[%emt 0:00:35]} 15. Nxc6 {[%emt 0:00:00]} ({But not} 15.
Bxd5 $2 Nb4 16. Bxf7+ {[#]} Qxf7 $1 $19) 15... Qd6 {[%emt 0:02:33]} (15... Bxc6
{is more resistant.} 16. Qxc6 Nf6) 16. Bxd5 {[%emt 0:00:00] Weighted Error
Value: White=0.01 (flawless) /Black=0.91} 1-0

[Event "44th Chess Olympiad Open 2022"]
[Site "Chennai"]
[Date "2022.08.07"]
[Round "9.28"]
[White "Samsonkin, Artiom"]
[Black "Ungurs, Edgars"]
[Result "1-0"]
[WhiteElo "2434"]
[BlackElo "2206"]
[Annotator "TA"]
[PlyCount "95"]
[EventDate "2022.??.??"]
[TimeControl "60"]

{[%evp 14,95,6,0,0,0,0,0,22,0,6,0,16,0,10,0,0,0,28,9,49,-44,22,28,42,41,39,16,
31,36,46,-13,-10,-10,-10,-10,-10,-19,-10,-11,0,-26,-4,-16,-13,-14,0,0,0,-22,36,
43,41,34,50,54,79,25,29,37,36,45,209,104,271,230,660,658,634,612,660,573,859,
856,789,704,633,562,1952,1718,29981,29982,29982,2014]} 1. e4 {[%emt 0:00:06]}
c6 {[%emt 0:00:12]} 2. d4 {[%emt 0:00:21]} d5 {[%emt 0:00:08]} 3. e5 {[%emt 0:
00:00]} Bf5 {[%emt 0:00:29]} 4. h4 {[%emt 0:00:30]} h5 {[%emt 0:00:24]} 5. c4 {
[%emt 0:00:32]} e6 {[%emt 0:01:05]} 6. Nc3 {[%emt 0:00:23]} dxc4 {[%emt 0:00:
00]} 7. Bxc4 {[%emt 0:00:10]} Nd7 {[%emt 0:00:43]} 8. Nge2 {[%emt 0:01:23]} Be7
{[%emt 0:00:59] B12: Caro-Kann: Advance Variation.} 9. g3 {[%emt 0:07:44]} Nh6
{[%emt 0:02:38]} 10. Bf4 {[%emt 0:01:24] [#]} Bg6 $146 {[%emt 0:02:37] The
position is equal.} ({Predecessor:} 10... Ng4 11. Qd2 Qa5 12. O-O Rd8 13. Qc1
Nb6 14. Bb3 c5 15. Rd1 O-O 16. Bd2 Qa6 {0-1 (62) Vidit,S (2727)-Keymer,V (2664)
Chess.com INT 2022}) 11. Qd2 {[%emt 0:02:18]} Nb6 {[%emt 0:26:13]} 12. Bb3 {
[%emt 0:00:35]} Qd7 {[%emt 0:13:07]} 13. a4 {[%emt 0:41:00]} a5 {[%emt 0:00:01]
} 14. Bg5 {[%emt 0:11:38]} Nf5 {[%emt 0:12:01]} 15. Rd1 {[%emt 0:01:00]} Nd5 {
[%emt 0:12:05]} 16. Nxd5 {[%emt 0:10:12]} exd5 {[%emt 0:04:48]} 17. O-O {
[%emt 0:00:25]} (17. Bxe7 $1 $14 Nxe7 18. O-O) 17... Bxg5 {[%emt 0:04:31]} ({
Black should play} 17... f6 $1 $15 18. Bf4 O-O) 18. Qxg5 $11 {[%emt 0:00:08]}
Ne7 {[%emt 0:10:03]} 19. Qd2 {[%emt 0:06:00]} Bf5 {[%emt 0:03:15]} 20. Kh2 {
[%emt 0:02:25]} Qe6 {[%emt 0:00:00]} 21. Nf4 {[%emt 0:03:45]} Qh6 {[%emt 0:00:
00]} 22. Ng2 {[%emt 0:01:17]} (22. Bc2 $14) 22... Qxd2 {[%emt 0:00:00]} 23.
Rxd2 {[%emt 0:00:00]} Ra6 {[%emt 0:00:00][%cal Ya8a6,Ya6b6,Yb6b4]} 24. Rc1 {
[%emt 0:00:36]} Rb6 {[%emt 0:00:00]} 25. Rc3 {[%emt 0:00:06]} Kd7 {[%emt 0:00:
00]} 26. Bd1 {[%emt 0:00:51]} g6 {[%emt 0:00:11]} 27. Ne3 {[%emt 0:00:00]} Rb4
{[%emt 0:01:29]} 28. b3 {[%emt 0:00:36]} Ke6 {[%emt 0:01:38]} 29. f3 {[%emt 0:
00:54][%cal Yf2f3,Yf3g4]} Rc8 {[%emt 0:01:15][%cal Yc6c5]} 30. Ng2 {[%emt 0:03:
13]} Kd7 {[%emt 0:00:32]} 31. Nf4 {[%emt 0:00:21]} Rc7 {[%emt 0:02:32]} (31...
Rh8 $11) 32. g4 $14 {[%emt 0:01:32]} hxg4 {[%emt 0:00:00]} 33. fxg4 {[%emt 0:
00:03]} Be4 {[%emt 0:00:32]} 34. Kg3 {[%emt 0:01:08]} b5 {[%emt 0:01:03]} 35.
Nd3 {[%emt 0:01:43]} (35. Rc5 $16) 35... Bxd3 $11 {[%emt 0:00:33]} 36. Rdxd3 {
[%emt 0:01:10]} bxa4 {[%emt 0:00:28]} 37. bxa4 {[%emt 0:00:04]} Nc8 $2 {
[%emt 0:00:32]} (37... c5 $14) 38. Rc5 {[%emt 0:00:48]} (38. h5 $18 {and the
rest is easy.}) 38... Ra7 $2 {[%emt 0:00:02]} (38... Ke6 $16) 39. h5 $18 {
[%emt 0:00:57][%cal Yh4h5,Yh5h6,Yh6h7]} g5 $2 {[%emt 0:00:57]} (39... gxh5 40.
gxh5 Ne7) 40. h6 {[%emt 0:01:01]} Ne7 {[%emt 0:00:00]} 41. h7 {[%emt 0:30:34]}
Ng6 {[%emt 0:16:06]} 42. Rf3 {[%emt 0:00:00]} Nh8 {[%emt 0:01:30]} 43. Bc2 {
[%emt 0:00:00]} Rxd4 {[%emt 0:02:53]} 44. Rf5 {[%emt 0:04:06]} Ra8 {[%emt 0:03:
44]} 45. Rxg5 {[%emt 0:00:00]} Ng6 {[%emt 0:00:00]} 46. Bxg6 {[%emt 0:00:00] 
[#] White threatens Bf5+ and mate.} fxg6 {[%emt 0:00:07]} 47. Rxg6 {[%emt 0:00:
00]} Rh8 {[%emt 0:02:05]} 48. Rxa5 {[%emt 0:00:00] Weighted Error Value:
White=0.21 (precise) /Black=0.54} (48. Rg7+ $142 Kc8 49. Rg8+ Kb7 50. Rxh8 Rb4
51. Rf8 Rxa4 {[#]} 52. Rb8+ $3 Kxb8 53. h8=Q+ Kb7 54. Qe8) 1-0

[Event "44th Chess Olympiad Open 2022"]
[Site "Chennai"]
[Date "2022.08.07"]
[Round "9.28"]
[White "Reimanis, Ritvars"]
[Black "Preotu, Razvan"]
[Result "0-1"]
[WhiteElo "2377"]
[BlackElo "2445"]
[Annotator "TA"]
[PlyCount "130"]
[EventDate "2022.??.??"]
[TimeControl "60"]

{[%evp 20,130,13,0,0,5,12,20,29,28,25,27,19,12,22,0,0,0,0,-12,0,0,0,0,0,-19,
-23,-20,-16,-13,-12,-27,-18,-35,-31,-64,-54,-52,-8,-54,-57,-53,-26,-16,-19,-41,
-35,-42,-34,-85,-78,-125,-121,-139,-129,-137,-143,-137,-141,-126,-121,-198,
-133,-134,-134,-134,-135,-130,-127,-133,-134,-222,-237,-249,-206,-245,-246,
-191,-97,-134,-137,-133,-115,-130,-138,-154,-160,-458,-296,-403,-403,-369,-321,
-475,-472,-434,-357,-425,-410,-1100,-472,-387,-368,-29943,-8497,-5087,-3190,
-29964,-29965,-29956,-11654,-29990,-29991]} 1. d4 {[%emt 0:00:04] RR} Nf6 {
[%emt 0:00:14]} 2. c4 {[%emt 0:00:05]} g6 {[%emt 0:00:11]} 3. Nc3 {[%emt 0:00:
00]} d5 {[%emt 0:00:12]} 4. cxd5 {[%emt 0:00:30]} Nxd5 {[%emt 0:00:07]} 5. e4 {
[%emt 0:00:04]} Nxc3 {[%emt 0:00:11]} 6. bxc3 {[%emt 0:00:05][%cal Yb2c3,Yc3d4,
Yd4d5]} Bg7 {[%emt 0:00:14]} 7. Be3 {[%emt 0:00:16]} c5 {[%emt 0:00:00]} 8. Rc1
{[%emt 0:00:08]} Qa5 {[%emt 0:01:59]} 9. Qd2 {[%emt 0:00:07]} cxd4 {[%emt 0:03:
58]} 10. cxd4 {[%emt 0:00:06]} Qxd2+ {[%emt 0:00:07]} 11. Bxd2 {[%emt 0:00:04]}
O-O {[%emt 0:00:19] D85: Exchange Grünfeld: Unusual White 7th moves and lines
with 7 Nf3.} 12. Nf3 {[%emt 0:00:06]} Bg4 $1 {[%emt 0:00:59] 12...Bg4 is
better than 12...e6.} 13. Be3 {[%emt 0:00:15]} Nc6 {[%emt 0:01:05] The
position is equal.} 14. d5 {[%emt 0:00:26]} Bxf3 {[%emt 0:00:21]} 15. gxf3 {
[%emt 0:00:06]} Nd4 {[%emt 0:00:12]} 16. Bh3 {[%emt 0:00:24] Prevents Rac8.} f5
{[%emt 0:00:39]} 17. Bxd4 {[%emt 0:00:49]} Bxd4 {[%emt 0:00:11]} 18. exf5 {
[%emt 0:00:11]} gxf5 {[%emt 0:07:10] [#]} 19. Rc4 $146 {[%emt 0:06:43]} ({
Predecessor:} 19. Rg1+ Kh8 20. Rg5 Rad8 21. Rxf5 Rxf5 22. Bxf5 Rxd5 23. Rc8+
Kg7 24. Rg8+ Kh6 25. Be4 {½-½ (64) Nguyen,C (2389)-Le Roux,J (2571) Sautron
2013 EXT 2016 [RR]}) 19... Be5 {[%emt 0:00:34]} 20. Rg1+ {[%emt 0:08:45]} Kh8 {
[%emt 0:00:12]} 21. Rg5 {[%emt 0:02:13]} Rad8 {[%emt 0:04:19]} 22. f4 {[%emt 0:
00:00]} b5 {[%emt 0:06:03]} 23. Rc5 {[%emt 0:04:15]} Bd4 $36 {[%emt 0:00:54]
Black has good play.} 24. Rxb5 {[%emt 0:01:55]} a6 {[%emt 0:00:19]} 25. Rb7 {
[%emt 0:15:00]} Rxd5 {[%emt 0:00:17]} 26. Rg3 {[%emt 0:10:29]} ({But not} 26.
Rxe7 $2 Bf6 27. Re6 Bxg5 28. fxg5 f4 $19) 26... Bc5 {[%emt 0:00:00]} 27. Rc3 {
[%emt 0:20:21]} Rfd8 {[%emt 0:12:00]} 28. Rc2 {[%emt 0:00:07]} Rg8 {[%emt 0:00:
16] Prevents Bg2.} 29. Ke2 {[%emt 0:01:28]} (29. Bf1 $11 {is superior.}) 29...
Rg6 $15 {[%emt 0:17:57]} 30. Rb3 {[%emt 0:00:33]} Bd6 {[%emt 0:04:03]} 31. Rc4
{[%emt 0:01:50]} Kg7 {[%emt 0:11:04]} 32. Rg3 {[%emt 0:00:00]} Rb5 {[%emt 0:01:
00]} 33. Ra4 {[%emt 0:06:09]} a5 {[%emt 0:03:24]} 34. Rb3 {[%emt 0:03:02]} (34.
Kf3 $15) 34... Rc5 $17 {[%emt 0:01:48]} 35. Kf3 {[%emt 0:06:15]} (35. Rg3 $142)
35... Rg1 $1 {[%emt 0:04:58]} 36. Rd4 {[%emt 0:00:00]} Ra1 {[%emt 0:02:48]} 37.
Rb2 {[%emt 0:00:03]} Kf6 {[%emt 0:04:03]} ({Stronger than} 37... Rc3+ 38. Kg2
$17) 38. Re2 {[%emt 0:00:00]} Rb1 {[%emt 0:00:00]} 39. Red2 {[%emt 0:00:15]}
Rc3+ {[%emt 0:01:09]} 40. Kg2 {[%emt 0:00:19] [#]} (40. R4d3 $17 Rb2 41. Rxc3
Rxd2 42. a3) 40... Rb8 {[%emt 0:02:07]} (40... Bc7 $1 $19 41. R4d3 Rxd3 42.
Rxd3 Rb2) 41. R2d3 {[%emt 0:30:01]} Rxd3 {[%emt 0:00:00]} 42. Rxd3 {[%emt 0:00:
01]} Bxf4 {[%emt 0:00:00] Endgame KRB-KRB} 43. Rd5 {[%emt 0:00:00]} e6 {
[%emt 0:00:00]} 44. Rxa5 {[%emt 0:00:00]} Rb2 {[%emt 0:00:00]} 45. Kf3 {
[%emt 0:00:00] Against Be3} (45. Kg1 $17) 45... Bxh2 $19 {[%emt 0:00:00]} 46.
Bf1 {[%emt 0:00:00]} Bc7 {[%emt 0:00:00]} 47. Ra6 {[%emt 0:00:00]} Bb6 {
[%emt 0:07:53]} 48. Bc4 {[%emt 0:00:00]} Rxf2+ {[%emt 0:00:00]} (48... Kg5 $19
{Hoping for ...e5.} 49. Bxe6 h5) 49. Kg3 $17 {[%emt 0:00:00]} Rc2 {[%emt 0:00:
00]} 50. Bxe6 {[%emt 0:00:00]} Rc6 {[%emt 0:00:06] Black is more active.} ({
Worse is} 50... Kxe6 51. Rxb6+ Ke5 52. a4 $17) 51. Bc4 {[%emt 0:00:00]} Kg5 {
[%emt 0:00:00] White must now prevent ...Bc7+.} 52. Ra4 {[%emt 0:00:00]} h5 {
[%emt 0:00:00]} 53. Bd5 $2 {[%emt 0:00:00]} (53. Kh2 $17 {was worth a try.})
53... Rc2 {[%emt 0:00:00][%cal Yh5h4] Threatens to win with ...h4+!} 54. Ra8 {
[%emt 0:00:00]} h4+ {[%emt 0:00:00]} 55. Kh3 {[%emt 0:00:00]} Rc3+ {[%emt 0:00:
00]} 56. Kg2 {[%emt 0:00:03]} (56. Kh2 $142) 56... h3+ $19 {[%emt 0:00:00]} 57.
Kf1 Rc2 {[%emt 0:00:44]} 58. a4 {[%emt 0:01:33]} h2 {[%emt 0:00:38]} 59. a5 {
[%emt 0:00:15]} (59. Rg8+ $142 Kf4 60. Re8) 59... Rc1+ {[%emt 0:00:58]} (59...
Bd4 $142 {...f4 is the strong threat.} 60. Re8 Rf2+ 61. Ke1 {[#]} Ra2 $3) 60.
Ke2 {[%emt 0:00:00]} Bd4 {[%emt 0:00:19]} 61. a6 $2 {[%emt 0:00:00]} (61. Rd8
$19) 61... h1=Q {[%emt 0:00:57]} 62. Bxh1 {[%emt 0:00:00]} Rxh1 {[%emt 0:00:02]
} 63. a7 {[%emt 0:00:00]} Kf4 {[%emt 0:00:00]} 64. Kd3 {[%emt 0:00:00]} Bb6 {
[%emt 0:00:21] ( -> ...Ra1)} 65. Rh8 {[%emt 0:00:00]} Rxh8 {[%emt 0:00:09]
Weighted Error Value: White=0.68/Black=0.15 (very precise)} 0-1

[Event "44th Chess Olympiad Open 2022"]
[Site "Chennai"]
[Date "2022.08.07"]
[Round "9.29"]
[White "Ragger, Markus"]
[Black "Gemy, Jose Daniel"]
[Result "1-0"]
[WhiteElo "2647"]
[BlackElo "2373"]
[Annotator "TA"]
[PlyCount "65"]
[EventDate "2022.??.??"]
[TimeControl "60"]

{[%evp 9,65,16,18,21,14,10,21,11,21,18,34,26,35,23,18,18,51,30,114,105,88,79,
79,79,87,37,41,20,22,17,27,40,52,48,110,100,313,277,272,60,348,339,323,316,605,
554,727,771,741,740,746,734,727,719,800,652,5021,5009]} 1. e4 {[%emt 0:00:01]}
e5 {[%emt 0:00:11]} 2. Nf3 {[%emt 0:00:05]} Nc6 {[%emt 0:00:03]} 3. Bb5 {
[%emt 0:00:04]} Nf6 {[%emt 0:00:12][%cal Yg8f6,Yf6d7,Yd7b6,Yb6c4]} 4. d3 {
[%emt 0:00:02][%cal Yd2d3,Yd3d4]} Bc5 {[%emt 0:00:09]} 5. Bxc6 {[%emt 0:00:07]}
dxc6 {[%emt 0:00:06]} 6. O-O {[%emt 0:00:04] C65: Ruy Lopez: Berlin Defence (3.
..Nf6), unusual lines and 4 0-0 Bc5.} Nd7 {[%emt 0:02:39]} 7. c3 $1 {[%emt 0:
02:33] now scores much better than the old 7.Nbd2.} Bd6 {[%emt 0:00:15]} 8. d4
{[%emt 0:00:38] The position is equal.} f6 {[%emt 0:00:00]} 9. Nbd2 {[%emt 0:
19:46]} Qe7 {[%emt 0:05:34]} 10. Nc4 {[%emt 0:03:20] [#]} Nb6 $146 {[%emt 0:00:
43]} ({Predecessor:} 10... O-O 11. dxe5 Nxe5 12. Ncxe5 fxe5 13. Bg5 Qf7 14. Nd2
Be6 15. Qe2 a5 16. Be3 a4 {0-1 (46) Starley,R (2078) -Teh,E (2263) Birmingham
2020}) 11. dxe5 {[%emt 0:05:38]} Nxc4 {[%emt 0:01:40]} 12. exd6 {[%emt 0:00:02]
} Qxd6 {[%emt 0:09:57]} 13. Nd4 {[%emt 0:15:16]} Bd7 {[%emt 0:14:46]} (13...
Qe7 $11 {keeps the balance.}) 14. b3 $16 {[%emt 0:01:01]} Nb6 {[%emt 0:01:42]}
15. Qh5+ {[%emt 0:06:16]} g6 {[%emt 0:01:36]} 16. Qa5 {[%emt 0:00:02] White is
more active.} O-O-O {[%emt 0:18:54]} 17. Qxa7 {[%emt 0:00:00]} (17. f4 $16 {
Black must now prevent Ba3.} Qe7 18. e5 (18. Qxa7 Qxe4 19. a4 c5 $11)) 17... c5
$14 {[%emt 0:00:14]} 18. Ba3 {[%emt 0:00:25] Hoping for Qa5.} Qe5 $1 {[%emt 0:
00:14]} 19. Nf3 {[%emt 0:00:42]} Qh5 {[%emt 0:00:05]} 20. Rae1 $36 {[%emt 0:22:
31][%cal Ya1e1,Ye1e3,Ye3g3] White has some pressure.} Bg4 {[%emt 0:17:18]} 21.
Re3 {[%emt 0:01:05]} f5 {[%emt 0:05:22] [#]} (21... Rhe8 $14) 22. exf5 $1 $16 {
[%emt 0:13:32]} (22. Bxc5 $6 f4 23. Bxb6 cxb6 $11) 22... gxf5 $2 {[%emt 0:03:
50]} (22... Rhe8 $16 {keeps fighting.}) 23. Bxc5 $18 {[%emt 0:00:00]} Rhg8 {
[%emt 0:01:10] aiming for ...Bxf3.} 24. Ne5 {[%emt 0:00:00]} (24. Bxb6 $18 {
[%cal Ye3e7] White threatens Re7! and mate.} Bxf3 25. Qa8+ Kd7 26. Qa4+ Kc8 {
[#]} 27. g3 $1 cxb6 28. Qa8+ (28. Qc4+ $2 Bc6 $19) 28... Kc7 29. Re7+ Rd7 30.
Rxd7+ Kxd7 31. Qxg8) 24... Bh3 $2 {[%emt 0:00:00]} (24... f4 $1 $14 25. Bxb6
cxb6 26. Nxg4 fxe3 27. Nxe3 Qa5 28. Qxa5 bxa5) 25. Rg3 {[%emt 0:00:00]} Rxg3 {
[%emt 0:03:34]} 26. hxg3 {[%emt 0:00:00] The board is on fire.} Rd1 $2 {
[%emt 0:00:07]} (26... f4 27. Bxb6 (27. gxh3 Qxe5 28. Bxb6 cxb6 $18) (27. gxf4
{is a self mate.} Bxg2) 27... cxb6) 27. f3 {[%emt 0:00:00] White is clearly
winning.} Bxg2 {[%emt 0:00:54]} 28. Kxg2 {[%emt 0:00:00][%cal Yg1g2,Yg2f1,
Yf1e2]} Rxf1 {[%emt 0:00:06]} 29. Kxf1 {[%emt 0:00:00]} Qh3+ {[%emt 0:00:03]}
30. Ke2 {[%emt 0:00:00]} Qxg3 {[%emt 0:00:00]} 31. Nd3 {[%emt 0:02:32]} Qg2+ {
[%emt 0:02:07]} 32. Bf2 {[%emt 0:00:00] Threatens to win with Nc5.} h5 {
[%emt 0:01:34]} 33. Nc5 {[%emt 0:00:00] Weighted Error Value: White=0.17 (very
precise) /Black=0.60} 1-0

[Event "44th Chess Olympiad Open 2022"]
[Site "Chennai"]
[Date "2022.08.07"]
[Round "9.29"]
[White "Shengelia, David"]
[Black "Mendoza, Rodrigo"]
[Result "1-0"]
[WhiteElo "2462"]
[BlackElo "2215"]
[Annotator "TA"]
[PlyCount "39"]
[EventDate "2022.??.??"]
[TimeControl "60"]

{[%evp 14,39,32,23,76,81,96,85,85,78,92,94,107,115,100,89,83,87,119,91,134,120,
138,148,441,437,451,458]} 1. d4 {[%emt 0:00:03]} Nf6 {[%emt 0:00:01]} 2. Nf3 {
[%emt 0:00:17]} e6 {[%emt 0:00:13]} 3. c4 {[%emt 0:00:45]} Bb4+ {[%emt 0:00:05]
} 4. Nbd2 {[%emt 0:00:18]} d5 {[%emt 0:01:20]} 5. Qa4+ {[%emt 0:06:53]} Nc6 {
[%emt 0:03:05]} 6. a3 {[%emt 0:14:02]} Be7 {[%emt 0:08:59]} 7. e3 {[%emt 0:00:
00]} O-O {[%emt 0:05:19]} 8. Bd3 {[%emt 0:00:26]} dxc4 {[%emt 0:25:44] E11:
Bogo-Indian.} (8... a5 $11) 9. Nxc4 $16 {[%emt 0:02:42]} a6 {[%emt 0:06:32] [#]
...b5 is the strong threat.} 10. Qc2 $1 {[%emt 0:00:11]} h6 {[%emt 0:00:05]
White is better.} 11. Bd2 {[%emt 0:07:32][%cal Yc1d2,Yd2c3,Yc3b2] [#]} Re8 $146
{[%emt 0:20:56]} ({Predecessor:} 11... Ra7 12. O-O b5 13. Nce5 Nxe5 14. Nxe5
Bb7 15. Nc6 Bxc6 16. Qxc6 e5 17. Rfd1 exd4 18. exd4 {1-0 (60) Lei,T (2504)
-Xiao,Y (2222) Xinghua 2016}) 12. O-O {[%emt 0:06:17]} Rb8 {[%emt 0:00:00]} 13.
Rfd1 {[%emt 0:02:49] White is more active.} b6 {[%emt 0:05:03]} 14. e4 {
[%emt 0:07:57]} Bb7 {[%emt 0:03:25]} 15. Bc3 {[%emt 0:04:03]} Bf8 {[%emt 0:00:
00]} 16. Rac1 {[%emt 0:02:27]} Na7 {[%emt 0:03:24]} 17. b4 {[%emt 0:01:12]} Qc8
{[%emt 0:01:08]} 18. Bb2 {[%emt 0:02:11]} c5 $2 {[%emt 0:00:03] [#]} (18... Qd7
$16 19. h3 Qe7) 19. Nxb6 $18 Qc6 {[%emt 0:00:38]} 20. dxc5 {[%emt 0:00:00]
Weighted Error Value: White=0.04 (flawless) /Black=0.37} 1-0

[Event "44th Chess Olympiad Open 2022"]
[Site "Chennai"]
[Date "2022.08.07"]
[Round "9.29"]
[White "Bolanos, Fernando"]
[Black "Horvath, Dominik"]
[Result "0-1"]
[WhiteElo "2258"]
[BlackElo "2488"]
[Annotator "TA"]
[PlyCount "80"]
[EventDate "2022.??.??"]
[TimeControl "60"]

{[%evp 10,80,3,0,3,0,17,13,14,10,9,0,0,-9,0,-27,0,-18,-30,-70,-31,-27,0,0,0,-4,
12,-13,-16,-93,-78,-115,-111,-128,-121,-155,-158,-165,-165,-158,-147,-158,-152,
-153,-121,-207,-207,-206,-205,-195,-197,-218,-208,-248,-160,-184,-178,-448,
-447,-447,-447,-436,-425,-446,-272,-527,-501,-430,-286,-1183,-917,-5373,-5199]
} 1. e4 {[%emt 0:00:07]} c5 {[%emt 0:00:07]} 2. Nf3 {[%emt 0:00:30]} e6 {
[%emt 0:00:04]} 3. c4 {[%emt 0:00:54]} Nc6 {[%emt 0:00:07]} 4. Nc3 {[%emt 0:00:
00]} Nf6 {[%emt 0:00:22]} 5. d4 {[%emt 0:00:25]} cxd4 {[%emt 0:00:04]} 6. Nxd4
{[%emt 0:00:03]} Bc5 {[%emt 0:00:06] B44: Sicilian: Taimanov: 5 Nb5.} 7. Nb3 {
[%emt 0:06:25]} Bb4 {[%emt 0:00:05]} 8. Bd3 {[%emt 0:00:45]} O-O {[%emt 0:00:
00] The position is equal.} 9. O-O {[%emt 0:02:53]} Ne5 {[%emt 0:00:05][%cal
Yc6e5,Ye5g6,Yg6h4,Yh4f3]} 10. Be2 {[%emt 0:05:20]} (10. f4 {is interesting.}
Qb6+ 11. Kh1 Nxd3 12. Qxd3 d5 13. cxd5 exd5 14. e5) 10... Ng6 {[%emt 0:00:06] 
[#]} 11. Qd3 $146 {[%emt 0:01:59]} ({Predecessor:} 11. Qd4 d6 12. Rd1 e5 13.
Qd3 Be6 14. Nd5 Bxd5 15. cxd5 Ba5 16. Nxa5 Qxa5 17. f3 {½-½ (28) Sinnhoefer,
J (1825)-Gentemann,M (2181) Germany 2018}) 11... b6 {[%emt 0:00:00]} 12. f4 {
[%emt 0:21:35]} d6 {[%emt 0:06:39] Against e5} 13. Bf3 {[%emt 0:00:43][%cal
Ye4e5] Threatens to win with e5!} Nh4 {[%emt 0:01:35]} 14. Be3 {[%emt 0:15:41]}
Nxf3+ {[%emt 0:02:48]} (14... Bxc3 $5 15. Qxc3 Bb7 $11) 15. gxf3 {[%emt 0:00:
18]} Bxc3 {[%emt 0:02:10]} 16. Qxc3 {[%emt 0:02:21]} Ba6 {[%emt 0:02:23]} 17.
Rfd1 {[%emt 0:07:33][%cal Yc4c5]} Rc8 {[%emt 0:00:04]} 18. Qd2 {[%emt 0:02:13]
Inhibits d5.} Nh5 {[%emt 0:09:43]} 19. Kh1 {[%emt 0:08:40]} (19. Qxd6 $11 Bxc4
20. Qxd8 Rfxd8 21. Nd4) 19... Bxc4 {[%emt 0:00:26] aiming for ...f5. Black
converts the advantage convincingly.} 20. Rg1 {[%emt 0:00:05]} e5 {[%emt 0:17:
37] Against Nd4} 21. Rg5 {[%emt 0:07:07] Hoping for Rag1.} exf4 {[%emt 0:00:14]
} 22. Rxh5 {[%emt 0:00:03]} fxe3 {[%emt 0:00:06]} 23. Qxe3 {[%emt 0:00:02]}
Bxb3 {[%emt 0:01:45]} 24. Qxb3 {[%emt 0:01:06]} Rc5 {[%emt 0:00:00]} 25. Rxc5 {
[%emt 0:09:13]} dxc5 $17 {[%emt 0:00:05] Endgame KQR-KQR} ({And not} 25... bxc5
26. Rd1 $17) 26. Rd1 {[%emt 0:00:05] Inhibits Qd2.} Qf6 {[%emt 0:00:04]} 27.
Qc3 {[%emt 0:00:02] [#]} (27. Rd5 $17 {was necessary.}) 27... Rd8 $1 $19 {
[%emt 0:00:59]} 28. Rxd8+ {[%emt 0:03:50]} Qxd8 {[%emt 0:00:04] KQ-KQ} 29. Kg2
{[%emt 0:00:34]} h5 {[%emt 0:00:17]} 30. Qe5 {[%emt 0:00:21] [#]} g6 $1 {
[%emt 0:00:18]} 31. Kg3 {[%emt 0:00:11]} Kh7 {[%emt 0:01:46]} 32. b3 {[%emt 0:
00:42]} Qd7 {[%emt 0:01:47]} 33. Kf4 $2 {[%emt 0:01:39]} (33. h4) 33... Qd2+ {
[%emt 0:02:16]} 34. Kg3 {[%emt 0:00:01]} Qxa2 {[%emt 0:00:32]} 35. Qd5 {
[%emt 0:00:07]} Kg8 {[%emt 0:00:11]} 36. e5 {[%emt 0:00:56]} Qb2 {[%emt 0:02:
55]} 37. Qd8+ $2 {[%emt 0:01:08]} (37. e6 {was the only defense.} Qf6 38. exf7+
Qxf7 39. Qd6) 37... Kh7 {[%emt 0:00:04]} 38. Qd5 {[%emt 0:00:02]} Kg7 {[%emt 0:
00:22]} 39. h4 $2 {[%emt 0:00:56]} (39. e6 h4+ 40. Kh3) 39... Qd4 {[%emt 0:00:
34]} 40. Qd6 {[%emt 0:01:12]} Qxd6 {[%emt 0:00:11] Weighted Error Value:
White=0.78/Black=0.12 (very precise)} 0-1